Cogmind - Beta 17 @@@ ROGUE MODE // 2026.08.01 @ 04:16:34 Player: kite Result: Self-destructed Performance ------------- Evolutions (1) 500 Regions Visited (5) 1000 Robots Destroyed (43) 215 Value Destroyed (922) 922 Prototype IDs (25) 500 Alien Tech Used (0) 0 Bonus (328) 328 TOTAL SCORE: 3465 Bonus ------- Follower Combat Kills 28 Aligned with FarCom 300 Cogmind --------- Core Integrity 310/400 Matter 300/300 Energy 280/280 System Corruption 0% Temperature Cool (0) Movement Rolling (101) Ox1 Location -9/Exiles Parts ------- > --- POWER (1) -------- Cooled Ion Engine > --- PROPULSION (3) --- Wheel Wheel Compact Wheel > --- UTILITY (2) ------ High-capacity Storage Unit Light Armor Plating > --- WEAPON (3) ------- Heavy Assault Rifle Improved Assault Rifle Improved Assault Rifle > --- INVENTORY (20) --- Light Treads Light Treads Aluminum Leg Carbon-fiber Leg Carbon-fiber Leg High-capacity Storage Unit Large Battery (200) Melee Analysis Suite Light Armor Plating Light Armor Plating Hardened Light Armor Plating Hardened Light Armor Plating Hardened Light Armor Plating Light Assault Rifle Grenade Launcher Rocket Launcher Heavy Hammer Heavy Hammer Heavy Hammer Heavy Hammer Peak State ------------ > --- POWER ------------ Cooled Ion Engine > --- PROPULSION ------- Wheel Wheel Compact Wheel > --- UTILITY ---------- High-capacity Storage Unit Light Armor Plating > --- WEAPON ----------- Heavy Assault Rifle Improved Assault Rifle Improved Assault Rifle > --- INVENTORY -------- Light Treads Light Treads Aluminum Leg Carbon-fiber Leg Carbon-fiber Leg High-capacity Storage Unit Large Battery Light Armor Plating Light Armor Plating Hardened Light Armor Plating Hardened Light Armor Plating Hardened Light Armor Plating Light Assault Rifle Grenade Launcher Rocket Launcher Heavy Hammer Heavy Hammer Heavy Hammer Heavy Hammer [Rating: 19] Favorites ----------- Power Ion Engine Engine Ion Engine Propulsion Wheel Treads Light Treads Leg Aluminum Leg Wheel Wheel Utility High-capacity Storage Unit Storage High-capacity Storage Unit Protection Hardened Light Armor Plating Weapon Heavy Assault Rifle Ballistic Gun Heavy Assault Rifle Launcher Rocket Launcher Impact Weapon Heavy Hammer Build | -11 -10 -10 -9 -9 -9 ------- Run | Yrd Mat Min Mat Min Exi Slots Evolved 2 | . . . 2 . . Power . | . . . . . . Propulsion 1 | . . . 1 . . Utility . | . . . . . . Weapon 1 | . . . 1 . . Parts Attached 26 | 6 5 3 12 . . Power 2 | 1 . . 1 . . Engine 2 | 1 . . 1 . . Core . | . . . . . . Reactor . | . . . . . . Propulsion 8 | 2 . 3 3 . . Treads 2 | 2 . . . . . Leg 1 | . . 1 . . . Wheel 5 | . . 2 3 . . Hover . | . . . . . . Flight . | . . . . . . Utility 5 | 1 2 . 2 . . Device . | . . . . . . Storage 2 | 1 1 . . . . Processor . | . . . . . . Hackware . | . . . . . . Protection 3 | . 1 . 2 . . Artifact . | . . . . . . Weapon 11 | 2 3 . 6 . . Energy Gun . | . . . . . . Energy Cannon . | . . . . . . Ballistic Gun 9 | 2 2 . 5 . . Ballistic Cannon . | . . . . . . Launcher 1 | . . . 1 . . Special Weapon . | . . . . . . Impact Weapon 1 | . 1 . . . . Slashing Weapon . | . . . . . . Piercing Weapon . | . . . . . . Special Melee Weapon . | . . . . . . Unidentified Prototypes 2 | . . . 2 . . Parts Lost 6 | . . 2 4 . . Power . | . . . . . . Propulsion 4 | . . 2 2 . . Utility 1 | . . . 1 . . Weapon 1 | . . . 1 . . Highest Loss Streak 2 | . . 2 2 . . To Critical Strikes . | . . . . . . Average Backups 13 | . 6 13 17 19 20 Power . | . . . . . . Propulsion 1 | . . . 3 5 5 Utility 4 | . 2 4 6 7 8 Weapon 6 | . 4 9 7 7 7 Tool/Special . | . . . . . . Unused Backups 19 | . . . 2 . 17 Power . | . . . . . . Propulsion 7 | . . . 2 . 5 Utility 8 | . . . . . 8 Weapon 4 | . . . . . 4 Tool/Special . | . . . . . . Average Slot Usage (%) 94 | . 92 92 95 100 100 Engine 12 | . 14 14 11 11 11 Treads 8 | . 28 2 . . . Leg 1 | . . 5 . . . Wheel 17 | . . 12 29 33 33 Storage 12 | . 14 14 11 11 11 Protection 10 | . 7 14 10 11 11 Ballistic Gun 30 | . 27 28 32 33 33 Peak Build Rating 19 | 6 12 12 19 19 19 Average Rating 13 | 4 9 11 16 19 19 On Entrance 11 | . 6 12 12 19 19 Avg Prop Armor Cover (%) . | . . . . . . Naked Turns . | . . . . . . Heaviest Build 60 | 12 56 56 60 60 60 Greatest Support 40 | 40 40 20 36 36 36 Greatest Overweight (x) 18 | . 1 18 2 1 1 Average Overweight (x) 1 | . . 2 1 1 1 Largest Inventory Capacity 20 | 8 20 20 20 20 20 Average Capacity 17 | 6 14 20 20 20 20 Most Carried 20 | . 13 16 20 20 20 Average Carried 13 | . 6 13 17 19 20 Final Capacity 20 | 8 20 20 20 20 20 Final Carried 20 | . 13 15 19 20 20 Class Distribution -------------------- 53% | Mutant 45% | Tank Dominant Class ---------------- Mutant | -10/Materials Mutant | -10/Mines Tank | -9/Materials Tank | -9/Mines Tank | -9/Exiles Resources | -11 -10 -10 -9 -9 -9 ----------- Run | Yrd Mat Min Mat Min Exi Matter Collected 1052 | 216 114 95 528 99 . Remotely . | . . . . . . Salvage Created 1212 | . 234 150 622 206 . Parts 95 | . 19 6 56 14 . Haulers Intercepted 1 | . . . 1 . . Recyclers Shooed 4 | . 2 1 1 . . Parts Field Recycled . | . . . . . . Retrieved Matter . | . . . . . . Parts Self-Destructed . | . . . . . . Prevented . | . . . . . . Parts Restored . | . . . . . . Kills | -11 -10 -10 -9 -9 -9 ------- Run | Yrd Mat Min Mat Min Exi Combat Hostiles Destroyed 36 | . 9 4 18 5 . Guns 33 | . 9 4 15 5 . AOE 3 | . . . 3 . . Classes Destroyed 9 | . 3 1 4 1 . Worker 2 | . . 1 1 . . Builder 2 | . 1 . 1 . . Tunneler 1 | . . . 1 . . Hauler 1 | . . . 1 . . Watcher 1 | . . . 1 . . Swarmer 19 | . 6 2 11 . . Grunt 11 | . 3 2 2 4 . Duelist 1 | . . . . 1 . Sentry 5 | . . . 5 . . Best Kill Streak 12 | . 4 2 12 3 . Combat Bots Only 10 | . 4 2 10 3 . Max Kills in Single Turn 4 | . 1 1 4 1 . Gunslinging 1 | . . . 1 . . Exploded 3 | . . . 3 . . Melee . | . . . . . . Uniques/NPCs Destroyed . | . . . . . . Combat | -11 -10 -10 -9 -9 -9 -------- Run | Yrd Mat Min Mat Min Exi Hostile Shots Fired 166 | . 40 26 86 14 . Missed 43 | . 6 8 25 4 . Hits 123 | . 34 18 61 10 . Projectile 123 | . 34 18 61 10 . Critical Strikes 3 | . . . 3 . . Damage Taken 1324 | . 295 249 659 121 . Core 112 | . 22 . 77 13 . Absorbed by Shields . | . . . . . . Core Remaining (%) 95 | 100 . 91 . . . Volleys Fired 94 | 1 28 22 32 11 . Largest 3 | 2 2 2 3 3 . Hottest 69 | 40 46 46 69 69 . Shots Fired 229 | 2 56 44 94 33 . Gun 228 | 2 56 44 93 33 . Cannon . | . . . . . . Launcher 1 | . . . 1 . . Special . | . . . . . . Kinetic 228 | 2 56 44 93 33 . Thermal . | . . . . . . Explosive 1 | . . . 1 . . Electromagnetic . | . . . . . . Robot Hit Streak 11 | 1 11 9 10 6 . Robot Miss Streak 5 | 1 3 4 5 2 . Penetration Max . | . . . . . . Secondary Targets 8 | . 1 . 7 . . Max Gunslinging Chain 2 | . 1 . 2 . . Shots Hit Robots 140 | 1 35 27 56 21 . Core Hits 56 | . 13 6 28 9 . Critical Kills . | . . . . . . Critical Parts Destroyed 1 | . . . 1 . . Critical Strikes 1 | . . . 1 . . Destroy 1 | . . . 1 . . Melee Attacks 1 | . 1 . . . . Impact 1 | . 1 . . . . Slashing . | . . . . . . Piercing . | . . . . . . Sneak Attacks . | . . . . . . Combat Hostiles . | . . . . . . Follow-up Attacks . | . . . . . . Damage Inflicted 2201 | 7 377 408 1089 320 . Guns 2003 | 7 354 408 914 320 . Cannons . | . . . . . . Explosions 175 | . . . 175 . . Melee . | . . . . . . Ramming 23 | . 23 . . . . Kinetic 2003 | 7 354 408 914 320 . Thermal . | . . . . . . Explosive 175 | . . . 175 . . Electromagnetic . | . . . . . . Impact . | . . . . . . Slashing . | . . . . . . Piercing . | . . . . . . Highest Corruption . | . . . . . . Average Corruption . | . . . . . . Corruption Purged . | . . . . . . Corruption Blocked . | . . . . . . Overload Shots . | . . . . . . Overflow Damage . | . . . . . . Projectiles . | . . . . . . Explosions . | . . . . . . Melee . | . . . . . . Knockbacks . | . . . . . . Impact . | . . . . . . Kinetic . | . . . . . . Secondary . | . . . . . . Self-Inflicted Damage 24 | . . . 24 . . Shots 1 | . . . 1 . . Rammed 4 | . 4 . . . . Targets Rammed 4 | . 4 . . . . Kicked . | . . . . . . Crushed . | . . . . . . Highest Temperature 138 | . 24 138 118 36 . Average Temperature 42 | . 12 79 41 13 . Received Heat Transfer 450 | . 60 138 183 69 . Siege Activations . | . . . . . . Martial Activations . | . . . . . . Shielding Activations . | . . . . . . Robots Disrupted . | . . . . . . Combat Hostiles . | . . . . . . Robots Corrupted . | . . . . . . Combat Hostiles . | . . . . . . Parts Fried . | . . . . . . Impact Corruptions . | . . . . . . Robots Melted . | . . . . . . Combat Hostiles . | . . . . . . Parts Melted . | . . . . . . Heat Transferred . | . . . . . . Parts Sabotaged . | . . . . . . Parts Stolen . | . . . . . . Parts Stripped . | . . . . . . Power Chain Reactions . | . . . . . . Alert | -11 -10 -10 -9 -9 -9 ------- Run | Yrd Mat Min Mat Min Exi Maximum Alert Level 1 | . . . 1 1 . Low Security (%) 84 | 100 100 100 47 95 . Level 1 15 | . . . 52 4 . Level 2 . | . . . . . . Level 3 . | . . . . . . Level 4 . | . . . . . . Level 5 . | . . . . . . High Security . | . . . . . . Max Security . | . . . . . . Peak Influence 391 | . 130 58 391 204 . Initial 134 | . . 24 18 134 . Average 106 | . 77 10 201 160 . Influence Increases 1132 | . 278 135 599 120 . Destroy 0b10 Robot/C 800 | . 180 100 420 100 . Destroy 0b10 Robot/NC 40 | . 5 10 25 . . Destroy Leader 184 | . 40 20 104 20 . Allied During Kill 21 | . . 5 16 . . Successful Hack 15 | . 7 . 8 . . Disable Machine 15 | . . . 15 . . Destroy Structure 12 | . 1 . 11 . . Lose Combat Pursuer 45 | . 45 . . . . Influence Decreases 1132 | . 215 150 302 331 134 Entered New Map 414 | . . 39 30 211 134 Time Decay 626 | . 215 79 212 120 . Lost Part 60 | . . 20 40 . . Lost Ally 32 | . . 12 20 . . Squads Dispatched 3 | . 3 . . . . Investigation 1 | . 1 . . . . Extermination . | . . . . . . Reinforcement 2 | . 2 . . . . Assault . | . . . . . . Garrison . | . . . . . . Intercept . | . . . . . . Searches Triggered . | . . . . . . Construction Impeded . | . . . . . . Haulers Reinforced . | . . . . . . Active Scanning Responses . | . . . . . . Cargo Convoy Interrupts . | . . . . . . Stealth | -11 -10 -10 -9 -9 -9 --------- Run | Yrd Mat Min Mat Min Exi Distress Signals 2 | . . . 2 . . Communications Jammed . | . . . . . . Distress Signals . | . . . . . . Times Spotted 55 | . 16 4 30 5 . Peak Tracking Total 13 | . 5 2 13 3 . Tactical Retreats 2 | . 2 . . . . Traps | -11 -10 -10 -9 -9 -9 ------- Run | Yrd Mat Min Mat Min Exi Traps Triggered 1 | . 1 . . . . Indirectly . | . . . . . . Trap Hack Attempts . | . . . . . . Triggered . | . . . . . . Disarmed . | . . . . . . Reprogrammed . | . . . . . . Reused . | . . . . . . Traps Extracted . | . . . . . . Installed . | . . . . . . Triggered . | . . . . . . Machines | -11 -10 -10 -9 -9 -9 ---------- Run | Yrd Mat Min Mat Min Exi Machines Disabled 1 | . . . 1 . . Max in Single Turn 1 | . . . 1 . . Machines Repaired . | . . . . . . Machines Dismantled . | . . . . . . Machines Sabotaged . | . . . . . . Overloaded Fab Kills . | . . . . . . Hacking | -11 -10 -10 -9 -9 -9 --------- Run | Yrd Mat Min Mat Min Exi Machines Accessed 3 | . 1 . 1 . 1 Terminals 2 | . 1 . 1 . . Fabricators . | . . . . . . Repair Stations . | . . . . . . Recycling Units . | . . . . . . Scanalyzers . | . . . . . . Garrison Access . | . . . . . . Total Hacks 6 | . 3 . 2 . 1 Successful 3 | . 1 . 1 . 1 Failed 3 | . 2 . 1 . . Catastrophic . | . . . . . . Database Lockouts . | . . . . . . Manual 6 | . 3 . 2 . 1 Terminals 5 | . 3 . 2 . . Fabricators . | . . . . . . Repair Stations . | . . . . . . Recycling Units . | . . . . . . Scanalyzers . | . . . . . . Garrison Access . | . . . . . . Terminal Hacks 3 | . 1 . 1 . 1 Part Schematic 1 | . 1 . . . . Branch Access Points 1 | . . . 1 . . Proto ID Catalog 1 | . . . . . 1 Fabricator Hacks . | . . . . . . Repair Station Hacks . | . . . . . . Recycling Unit Hacks . | . . . . . . Scanalyzer . | . . . . . . Garrison Access Hacks . | . . . . . . Unauthorized Hacks . | . . . . . . Terminals . | . . . . . . Fabricators . | . . . . . . Repair Stations . | . . . . . . Recycling Units . | . . . . . . Scanalyzers . | . . . . . . Garrison Access . | . . . . . . Data Cores Recovered . | . . . . . . Used . | . . . . . . Hacking Detections 1 | . 1 . . . . Full Trace Events 1 | . 1 . . . . Feedback Events . | . . . . . . Feedback Blocked . | . . . . . . Robot Schematics Acquired . | . . . . . . Robots Built . | . . . . . . Authchips . | . . . . . . Time . | . . . . . . Total Robot Build Rating . | . . . . . . Part Schematics Acquired 1 | . 1 . . . . Parts Built . | . . . . . . Authchips . | . . . . . . Time . | . . . . . . Total Part Build Rating . | . . . . . . Part Studies Acquired . | . . . . . . Parts Repaired . | . . . . . . Time . | . . . . . . Parts Recycled . | . . . . . . Recycled Matter . | . . . . . . Retrieved Matter . | . . . . . . Retrieved Components . | . . . . . . Parts Scanalyzed . | . . . . . . Part Schematics Acquired . | . . . . . . Parts Damaged . | . . . . . . Bothacking | -11 -10 -10 -9 -9 -9 ------------ Run | Yrd Mat Min Mat Min Exi Used RIF Installer . | . . . . . . Robots Hacked . | . . . . . . Non-combat . | . . . . . . Combat . | . . . . . . Robot Hacks Applied . | . . . . . . Relay Couplers Released . | . . . . . . Fabnet Peak Effective % . | . . . . . . Robots Rewired . | . . . . . . Allies Hacked . | . . . . . . Hacks Repelled . | . . . . . . Allies | -11 -10 -10 -9 -9 -9 -------- Run | Yrd Mat Min Mat Min Exi Total Allies 2 | . . 2 . . . Largest Group 2 | . . 2 1 . . Highest-Rated Group 42 | . . 42 31 . . Highest-Rated Ally 31 | . . 31 31 . . Total Orders . | . . . . . . Ally Attacks 22 | . . 10 12 . . Total Damage 313 | . . 122 191 . . Kills 5 | . . 2 3 . . Allies Corrupted . | . . . . . . Allies Melted . | . . . . . . Intel | -11 -10 -10 -9 -9 -9 ------- Run | Yrd Mat Min Mat Min Exi Active Infowar (turns) . | . . . . . . Robot Analysis Total . | . . . . . . Derelict Logs Recovered 1 | . . 1 . . . Drone Launches . | . . . . . . Drone Recoveries . | . . . . . . Exploration | -11 -10 -10 -9 -9 -9 ------------- Run | Yrd Mat Min Mat Min Exi Turns Passed 1724 | 74 500 345 442 248 115 Spaces Moved 985 | 41 183 147 292 209 113 Core 3 | 2 . 1 . . . Treads 222 | 39 183 . . . . Legs 28 | . . 28 . . . Wheels 732 | . . 118 292 209 113 Hover . | . . . . . . Flight . | . . . . . . Fastest Speed 50 | 50 160 110 101 101 101 Average Speed 134 | 154 199 184 103 101 101 Slowest Speed 950 | 160 240 950 120 101 101 Overloaded Moves . | . . . . . . Propulsion Burnouts . | . . . . . . Robots Hopped . | . . . . . . Potential Cave-ins . | . . . . . . Cave-ins Triggered . | . . . . . . Exploration Rate (%) 32 | 3 36 24 35 55 40 Regions Visited 5 Branch Regions 3 Pre-discovered Areas . | . . . . . . Known Exits Taken 1 | . . . 1 . . Unknown Exits Taken 4 | 1 1 1 . 1 . Scrap Searched 1 | . . . . 1 . Spaces Dug 1 | . 1 . . . . Terrain Destroyed 12 | . 1 . 11 . . Melee 1 | . 1 . . . . Projectile . | . . . . . . AOE 11 | . . . 11 . . Terrain Rammed . | . . . . . . Walls Destroyed . | . . . . . . Machines Disabled . | . . . . . . Actions | -11 -10 -10 -9 -9 -9 --------- Run | Yrd Mat Min Mat Min Exi Total 1184 | 47 265 176 362 221 113 Wait 32 | . 29 . 2 1 . Move 980 | 40 182 146 291 208 113 Hop . | . . . . . . Pick Up 31 | . 13 3 14 1 . Fast Attach 15 | 6 1 3 5 . . Attach 6 | . 1 . 5 . . Detach . | . . . . . . Swap 7 | . 4 . 3 . . Drop 14 | . 2 2 10 . . Fire 94 | 1 28 22 32 11 . Melee 1 | . 1 . . . . Ram . | . . . . . . Kick . | . . . . . . Crush 4 | . 4 . . . . Escape Stasis . | . . . . . . Rewire . | . . . . . . Trap . | . . . . . . Miscellaneous . | . . . . . . Route ------- -11/Scrapyard -10/Materials -10/Mines -9/Materials -9/Mines (discovered 2 exits: [*Mat] / *Exi) -9/Exiles History --------- Turn | Location | Event 7 | -11/Scrapyard | Discovered new exit (range 16) 75 | -11/Scrapyard | Entered Materials 336 | -10/Materials | Build established: Mutant 537 | -10/Materials | Discovered new exit (range 12) 575 | -10/Materials | Derelicts attacked the area 575 | -10/Materials | Entered Mines 702 | -10/Mines | Learned Materials garrison access intel 889 | -10/Mines | Discovered new exit (range 10) 920 | -10/Mines | Entered Materials 920 | -9/Materials | Accompanied by 1 ally 920 | -9/Materials | Evolved 2 slots: Propulsion x1, Weapon x1 925 | -9/Materials | Led the pair of lost Derelicts to an unsafe place 1166 | -9/Materials | Destroyed 10 combat bots 1310 | -9/Materials | Identified exit to Mines 1362 | -9/Materials | Entered Mines 1457 | -9/Mines | Build established: Tank 1466 | -9/Mines | Discovered new exit (range 3) 1526 | -9/Mines | Found a hidden stash of uninstalled traps 1606 | -9/Mines | Deemed a non-threat by the Exiles lab entrance 1606 | -9/Mines | Discovered new exit (range 5) 1610 | -9/Mines | Entered Exiles 1634 | -9/Exiles | Met 8R-AWN 1653 | -9/Exiles | Met EX-HEX 1681 | -9/Exiles | Met EX-BIN 1693 | -9/Exiles | Aligned with FarCom system 1694 | -9/Exiles | Given EX-Vault access code 1720 | -9/Exiles | Opened EX-Vault 1725 | -9/Exiles | Self-destructed Last Messages --------------- Modified TNC 0b10 Alert Chip Cloak of Protection Skeleton Box Trap Reconfigurator Supersonic Drone Bay Army-in-a-Box PSU Rigger Chronowheel AWS/Thermal Latent Energy Streamer Gui. Plasma Cannon Firepult YOLO Cannon AWS/Gauss XL Autogun Array AWS/Autocannon Field Lobotomy Kit Longsword +1 Deploy-a-Sentry Map ----- +----------------------------------------------------+ | | | | | | | | | | | | | | | | | | | | | | | | | | | | | | | | | | | | | | | | | | | | | | | ????????????????????????##???????????????????????? | | ?????????????????????####X####???????????????????? | | ?????????????????????# &@ #???????????????????? | | ?????????????????????# ]& ! #???????????????????? | | ?????????????????????# #???????????????????? | | ?????????????????????## ##???????????????????? | | ?????????????????????#X #????????????????????? | | ?????????????????????## #????????????????????? | | ??????????????????????# #????????????????????? | | ??????????????????????# #???###??????????????? | | ??????????????????????# #??"""""?????????????? | | ??????????????????????# ## """?????????????? | | ??????????????????????# X""?????????????? | | ??????????????????????# ## """?????????????? | | ????????????????####??# #??"""""?????????????? | | ????????????????"""""?# #???###??????????????? | | ???????????????"""" ## #????????????????????? | | ??????????????#""X" #????????????????????? | | ??????????????#" #????????????????????? | | ??????????????#" ## #????????????????????? | | ??????????????#""""""?# #?#########??????????? | | ???????????????#"###??# #?#"""""""#??????????? | | ??????????????????????# #?#"""""""#??????????? | | ??????????????????????# #?#"""""""#??????????? | | ?????????????????????## ###"" """"#??????????? | | ?????????????????????#" """"#??????????? | | ?????????????????????#" """#??????????? | +----------------------------------------------------+ Best States ------------- Heat Dissipation 28 Energy Generation 14 Energy Capacity 280 Matter Stores 300 Matter Capacity 300 Sight Range 16 Terrain Scan Density 10 Armor Coverage 150 Evasion (%) 40 Recoil Reduction 2 Item Schematics ----------------- Cargo Storage Unit | -10/Materials | Hacked Robot Schematics ------------------ None Fabricated ------------ Nothing Repaired ---------- Nothing Studied --------- None Alien Tech Used ----------------- None Achievements -------------- None Challenges ------------ None Game ------ Seed SapperZeronetCore Manual? 0 Play Time 00:10:56 Cumulative 510.7 hours Start 2026.08.01 @ 04:07:28 End 2026.08.01 @ 04:16:34 Sessions 1 Manual Loads 0 Difficulty Rogue Special Mode None Game No. 456 Rogue 456 Adventurer 0 Explorer 0 Win Type - Total 13 Types 7/0/3/1/0/0/0/1/0/1 Lore% 63 Gallery% 70 Achievement% 67 Wizard Run 0 Options --------- Layout 1 ASCII 0 Keyboard 0 Movement Mouse Keybinds 0 Fullscreen 2 Font 24/Cog Map View 25x17 Zoom Use 48% Tactical HUD 1 Map Filters NONE Filters NONE Steam 1 RUN: 37311910-581b-41c1-819e-f21af05e9405